Cogmind - Beta 13 @@@ ROGUE MODE // 2024.08.03 @ 11:09:37 Player: btracker Result: Destroyed by X-62 Marksman with Pulse Rifle Performance ------------- Evolutions (2) 1000 Regions Visited (5) 1000 Robots Destroyed (15) 75 Value Destroyed (428) 428 Prototype IDs (1) 20 Alien Tech Used (0) 0 Bonus (325) 325 TOTAL SCORE: 2848 Bonus ------- Follower Combat Kills 25 Aligned with FarCom 300 Cogmind --------- Core Integrity 0/550 Matter 377/400 Energy 440/440 System Corruption 1% Temperature Cool (9) Movement Core (250) Ox4 Location -8/Materials Parts ------- > --- POWER (2) -------- Nuclear Core > --- PROPULSION (3) --- (None) > --- UTILITY (3) ------ Heat Sink Large Battery Medium Matter Pod > --- WEAPON (3) ------- Katana > --- INVENTORY (5) ---- Wheel Improved Signal Interpreter Light Assault Rifle Hammer Peak State ------------ > --- POWER ------------ Light Ion Engine Light Ion Engine > --- PROPULSION ------- Wheel Wheel > --- UTILITY ---------- Heat Sink Large Battery Medium Matter Pod > --- WEAPON ----------- EM Pulse Gun Light Assault Rifle Field Lobotomy Kit > --- INVENTORY -------- Light Assault Rifle Hammer [Rating: 19] Favorites ----------- Power Light Ion Engine Engine Light Ion Engine Power Core Light Nuclear Core Propulsion Wheel Wheel Wheel Utility Heat Sink Device Heat Sink Storage Medium Matter Pod Weapon EM Pulse Gun Energy Gun EM Pulse Gun Ballistic Gun Light Assault Rifle Special Weapon Field Lobotomy Kit Slashing Weapon Katana Build | -11 -10 -10 -10 -9 -8 ------- Run | Yrd Mat Min Exi Min Mat Slots Evolved 4 | . . . . . 4 Power 1 | . . . . . 1 Propulsion 1 | . . . . . 1 Utility 1 | . . . . . 1 Weapon 1 | . . . . . 1 Parts Attached 17 | 6 1 . 1 . 9 Power 4 | 1 . . . . 3 Engine 2 | 1 . . . . 1 Core 2 | . . . . . 2 Reactor . | . . . . . . Propulsion 3 | 2 . . . . 1 Treads . | . . . . . . Leg . | . . . . . . Wheel 3 | 2 . . . . 1 Hover . | . . . . . . Flight . | . . . . . . Utility 3 | 1 1 . . . 1 Device 1 | 1 . . . . . Storage 2 | . 1 . . . 1 Processor . | . . . . . . Hackware . | . . . . . . Protection . | . . . . . . Artifact . | . . . . . . Weapon 7 | 2 . . 1 . 4 Energy Gun 2 | 2 . . . . . Energy Cannon . | . . . . . . Ballistic Gun 3 | . . . . . 3 Ballistic Cannon . | . . . . . . Launcher . | . . . . . . Special Weapon 1 | . . . 1 . . Impact Weapon . | . . . . . . Slashing Weapon 1 | . . . . . 1 Piercing Weapon . | . . . . . . Special Melee Weapon . | . . . . . . Unidentified Prototypes 1 | . . . 1 . . Parts Lost 9 | . . . . . 9 Power 3 | . . . . . 3 Propulsion 3 | . . . . . 3 Utility . | . . . . . . Weapon 3 | . . . . . 3 Highest Loss Streak 3 | . . . . . 3 To Critical Strikes . | . . . . . . Average Slot Usage (%) 88 | . 85 100 100 100 75 Engine 9 | . 14 14 14 14 4 Core 2 | . . . . . 5 Wheel 21 | . 28 28 28 28 13 Device 11 | . 14 14 14 14 9 Storage 14 | . . 14 14 14 17 Energy Gun 16 | . 28 28 23 14 7 Ballistic Gun 4 | . . . . . 10 Special Weapon 3 | . . . 4 14 1 Slashing Weapon 2 | . . . . . 5 Naked Turns . | . . . . . . Heaviest Build 23 | 8 10 10 16 16 23 Greatest Support 26 | 20 20 20 20 20 26 Greatest Overweight (x) 5 | . . . . . 5 Average Overweight (x) . | . . . . . . Largest Inventory Capacity 5 | 5 5 5 5 5 5 Average Capacity 5 | 5 5 5 5 5 5 Most Carried 5 | 3 1 5 5 5 5 Average Carried 3 | . . 3 4 5 3 Final Capacity 5 | 5 5 5 5 5 5 Final Carried 5 | . . 5 5 5 4 Class Distribution -------------------- 62% | Mutant 24% | Scavenger-Mutant 6% | Skirmisher 4% | Scavenger-Skirmisher Dominant Class ---------------- Mutant | -10/Materials Mutant | -10/Mines Mutant | -10/Exiles Mutant | -9/Mines Scavenger-Mutant | -8/Materials Resources | -11 -10 -10 -10 -9 -8 ----------- Run | Yrd Mat Min Exi Min Mat Matter Collected 475 | 260 . 104 . 16 95 Remotely . | . . . . . . Salvage Created 516 | 129 . 37 . . 350 Parts 32 | 11 . 5 . . 16 Haulers Intercepted . | . . . . . . Recyclers Shooed 1 | . . . . . 1 Parts Field Recycled . | . . . . . . Retrieved Matter . | . . . . . . Parts Self-Destructed . | . . . . . . Prevented . | . . . . . . Kills | -11 -10 -10 -10 -9 -8 ------- Run | Yrd Mat Min Exi Min Mat Combat Hostiles Destroyed 10 | 1 . 3 . . 6 Guns 4 | 1 . 1 . . 2 AOE 5 | . . 2 . . 3 Classes Destroyed 7 | 2 . 1 . . 4 Tunneler 4 | 4 . . . . . Watcher 1 | . . . . . 1 Swarmer 3 | . . 3 . . . Grunt 4 | 1 . . . . 3 Duelist 1 | . . . . . 1 Sentry 1 | . . . . . 1 Hunter 1 | . . . . . 1 Best Kill Streak 5 | 5 . 3 . . 5 Combat Bots Only 4 | 1 . 3 . . 4 Max Kills in Single Turn 2 | 1 . 2 . . 2 Gunslinging . | . . . . . . Exploded 2 | . . 2 . . 2 Melee . | . . . . . . Uniques/NPCs Destroyed . | . . . . . . Combat | -11 -10 -10 -10 -9 -8 -------- Run | Yrd Mat Min Exi Min Mat Hostile Shots Fired 105 | 1 . 10 . . 94 Missed 22 | . . 1 . . 21 Damage Taken 1233 | 11 . 97 . . 1125 Core 599 | . . 35 . . 564 Absorbed by Shields . | . . . . . . Core Remaining (%) 93 | 100 . . . 86 . Volleys Fired 57 | 7 1 5 . 2 42 Largest 3 | 2 2 2 . 2 3 Hottest 80 | 80 80 80 . 40 80 Shots Fired 125 | 14 2 10 . 4 95 Gun 120 | 14 2 10 . 2 92 Cannon . | . . . . . . Launcher . | . . . . . . Special 5 | . . . . 2 3 Kinetic 59 | . . . . . 59 Thermal . | . . . . . . Explosive . | . . . . . . Electromagnetic 61 | 14 2 10 . 2 33 Robot Hit Streak 11 | 5 . 3 . 3 11 Robot Miss Streak 5 | 2 2 4 . 1 5 Penetration Max . | . . . . . . Secondary Targets 2 | . . . . . 2 Max Gunslinging Chain 1 | . . . . . 1 Shots Hit Robots 79 | 9 . 5 . 3 62 Core Hits 35 | 5 . 3 . 1 26 Critical Kills . | . . . . . . Critical Parts Destroyed . | . . . . . . Critical Strikes 2 | 1 . . . . 1 Corrupt 2 | 1 . . . . 1 Melee Attacks . | . . . . . . Impact . | . . . . . . Slashing . | . . . . . . Piercing . | . . . . . . Sneak Attacks . | . . . . . . Combat Hostiles . | . . . . . . Follow-up Attacks . | . . . . . . Damage Inflicted 1103 | 154 . 166 . 11 772 Guns 801 | 122 . 54 . 11 614 Cannons . | . . . . . . Explosions 302 | 32 . 112 . . 158 Melee . | . . . . . . Ramming . | . . . . . . Kinetic 292 | . . . . . 292 Thermal 302 | 32 . 112 . . 158 Explosive . | . . . . . . Electromagnetic 509 | 122 . 54 . 11 322 Impact . | . . . . . . Slashing . | . . . . . . Piercing . | . . . . . . Highest Corruption 1 | . 1 1 1 1 1 Average Corruption 1 | . 1 1 1 1 1 Corruption Purged . | . . . . . . Corruption Blocked . | . . . . . . Effects 3 | . . . 1 . 2 Message Errors 2 | . . . 1 . 1 Data Loss (minor) 1 | . . . . . 1 Overload Shots . | . . . . . . Overflow Damage . | . . . . . . Projectiles . | . . . . . . Explosions . | . . . . . . Melee . | . . . . . . Knockbacks . | . . . . . . Impact . | . . . . . . Kinetic . | . . . . . . Secondary . | . . . . . . Self-Inflicted Damage 15 | . . 15 . . . Shots 1 | . . 1 . . . Rammed . | . . . . . . Targets Rammed . | . . . . . . Kicked . | . . . . . . Crushed . | . . . . . . Highest Temperature 48 | 24 . 8 . . 48 Average Temperature 13 | 14 . 6 . . 14 Received Heat Transfer 330 | 6 . . . . 324 Siege Activations . | . . . . . . Robots Corrupted 1 | . . . . . 1 Combat Hostiles 1 | . . . . . 1 Parts Fried 3 | . . 1 . . 2 Impact Corruptions . | . . . . . . Robots Melted . | . . . . . . Combat Hostiles . | . . . . . . Parts Melted . | . . . . . . Heat Transferred 350 | 50 . 150 . . 150 Parts Sabotaged . | . . . . . . Parts Stolen . | . . . . . . Parts Stripped . | . . . . . . Power Chain Reactions 5 | 1 . 1 . . 3 Alert | -11 -10 -10 -10 -9 -8 ------- Run | Yrd Mat Min Exi Min Mat Peak Influence 231 | 40 41 118 . 21 231 Initial 26 | . 26 15 . . 7 Average 88 | 13 36 112 . 20 116 Maximum Alert Level 1 | . . . . . 1 Low Security (%) 89 | 100 100 100 . 100 81 Level 1 10 | . . . . . 18 Level 2 . | . . . . . . Level 3 . | . . . . . . Level 4 . | . . . . . . Level 5 . | . . . . . . High Security . | . . . . . . Max Security . | . . . . . . Squads Dispatched 7 | . 4 . . . 3 Investigation 3 | . 2 . . . 1 Extermination . | . . . . . . Reinforcement 3 | . 2 . . . 1 Assault . | . . . . . . Garrison 1 | . . . . . 1 Intercept . | . . . . . . Searches Triggered . | . . . . . . Construction Impeded . | . . . . . . Haulers Reinforced . | . . . . . . Active Scanning Responses . | . . . . . . Cargo Convoy Interrupts . | . . . . . . Stealth | -11 -10 -10 -10 -9 -8 --------- Run | Yrd Mat Min Exi Min Mat Distress Signals 1 | . . . . . 1 Communications Jammed . | . . . . . . Distress Signals . | . . . . . . Times Spotted 26 | 1 2 3 . 2 18 Peak Tracking Total 7 | 1 2 3 . 1 7 Tactical Retreats . | . . . . . . Traps | -11 -10 -10 -10 -9 -8 ------- Run | Yrd Mat Min Exi Min Mat Traps Triggered 2 | . 1 . . . 1 Indirectly . | . . . . . . Trap Hack Attempts . | . . . . . . Triggered . | . . . . . . Disarmed . | . . . . . . Reprogrammed . | . . . . . . Reused . | . . . . . . Traps Extracted . | . . . . . . Installed . | . . . . . . Triggered . | . . . . . . Machines | -11 -10 -10 -10 -9 -8 ---------- Run | Yrd Mat Min Exi Min Mat Machines Disabled 2 | . . 1 . . 1 Max in Single Turn 1 | . . 1 . . 1 Machines Repaired . | . . . . . . Machines Dismantled . | . . . . . . Machines Sabotaged . | . . . . . . Overloaded Fab Kills . | . . . . . . Hacking | -11 -10 -10 -10 -9 -8 --------- Run | Yrd Mat Min Exi Min Mat Machines Accessed 2 | . 1 . . . 1 Terminals 1 | . . . . . 1 Fabricators . | . . . . . . Repair Stations . | . . . . . . Recycling Units 1 | . 1 . . . . Scanalyzers . | . . . . . . Garrison Access . | . . . . . . Total Hacks 11 | . 3 . . . 8 Successful 9 | . 2 . . . 7 Failed 2 | . 1 . . . 1 Catastrophic 1 | . 1 . . . . Database Lockouts . | . . . . . . Manual 1 | . . . 1 . . Terminals 8 | . . . . . 8 Fabricators . | . . . . . . Repair Stations . | . . . . . . Recycling Units 3 | . 3 . . . . Scanalyzers . | . . . . . . Garrison Access . | . . . . . . Terminal Hacks 7 | . . . . . 7 Alert Level 2 | . . . . . 2 Unreport Threat 1 | . . . . . 1 Locate Traps 1 | . . . . . 1 Dispatch Records 1 | . . . . . 1 Surveillance Status 1 | . . . . . 1 Zone Layout 1 | . . . . . 1 Fabricator Hacks . | . . . . . . Repair Station Hacks . | . . . . . . Recycling Unit Hacks 2 | . 2 . . . . Retrieve Matter 1 | . 1 . . . . Retrieve Components 1 | . 1 . . . . Scanalyzer . | . . . . . . Garrison Access Hacks . | . . . . . . Unauthorized Hacks . | . . . . . . Terminals . | . . . . . . Fabricators . | . . . . . . Repair Stations . | . . . . . . Recycling Units . | . . . . . . Scanalyzers . | . . . . . . Garrison Access . | . . . . . . Data Cores Recovered . | . . . . . . Used . | . . . . . . Hacking Detections 2 | . 1 . . . 1 Full Trace Events 2 | . 1 . . . 1 Feedback Events 1 | . 1 . . . . Corruption 1 | . 1 . . . . Feedback Blocked . | . . . . . . Robot Schematics Acquired . | . . . . . . Robots Built . | . . . . . . Authchips . | . . . . . . Time . | . . . . . . Total Robot Build Rating . | . . . . . . Part Schematics Acquired . | . . . . . . Parts Built . | . . . . . . Authchips . | . . . . . . Time . | . . . . . . Total Part Build Rating . | . . . . . . Parts Repaired . | . . . . . . Time . | . . . . . . Parts Recycled . | . . . . . . Recycled Matter . | . . . . . . Retrieved Matter . | . . . . . . Retrieved Components . | . . . . . . Parts Scanalyzed . | . . . . . . Part Schematics Acquired . | . . . . . . Parts Damaged . | . . . . . . Bothacking | -11 -10 -10 -10 -9 -8 ------------ Run | Yrd Mat Min Exi Min Mat Used RIF Installer . | . . . . . . Robots Hacked . | . . . . . . Non-combat . | . . . . . . Combat . | . . . . . . Robot Hacks Applied . | . . . . . . Relay Couplers Released . | . . . . . . Fabnet Peak Effective % . | . . . . . . Robots Rewired . | . . . . . . Allies Hacked . | . . . . . . Hacks Repelled . | . . . . . . Allies | -11 -10 -10 -10 -9 -8 -------- Run | Yrd Mat Min Exi Min Mat Total Allies 4 | . . . . 2 2 Largest Group 4 | . . . . 2 4 Highest-Rated Group 45 | . . . . 18 45 Highest-Rated Ally 16 | . . . . 10 16 Total Orders . | . . . . . . Ally Attacks 11 | . . . . 2 9 Total Damage 109 | . . . . 23 86 Kills 1 | . . . . 1 . Allies Corrupted . | . . . . . . Allies Melted 1 | . . . . . 1 Field Lobotomies 4 | . . . . 2 2 Intel | -11 -10 -10 -10 -9 -8 ------- Run | Yrd Mat Min Exi Min Mat Robot Analysis Total . | . . . . . . Derelict Logs Recovered . | . . . . . . Drone Launches . | . . . . . . Drone Recoveries . | . . . . . . Exploration | -11 -10 -10 -10 -9 -8 ------------- Run | Yrd Mat Min Exi Min Mat Turns Passed 1005 | 86 50 99 284 72 414 Spaces Moved 898 | 74 57 99 350 51 267 Core 23 | 18 . . . . 5 Treads . | . . . . . . Legs . | . . . . . . Wheels 875 | 56 57 99 350 51 262 Hover . | . . . . . . Flight . | . . . . . . Fastest Speed 50 | 50 80 80 80 80 80 Average Speed 85 | 72 80 80 80 80 98 Slowest Speed 300 | 80 80 80 80 80 300 Overloaded Moves . | . . . . . . Propulsion Burnouts . | . . . . . . Robots Hopped . | . . . . . . Cave-ins Triggered . | . . . . . . Exploration Rate (%) 22 | 9 14 13 52 29 20 Regions Visited 5 Branch Regions 3 Pre-discovered Areas . | . . . . . . Known Exits Taken . | . . . . . . Unknown Exits Taken 5 | 1 1 1 1 1 . Scrap Searched . | . . . . . . Spaces Dug . | . . . . . . Terrain Destroyed 20 | 5 . 3 . . 12 Melee . | . . . . . . Projectile . | . . . . . . AOE 20 | 5 . 3 . . 12 Terrain Rammed . | . . . . . . Walls Destroyed . | . . . . . . Machines Disabled . | . . . . . . Actions | -11 -10 -10 -10 -9 -8 --------- Run | Yrd Mat Min Exi Min Mat Total 1035 | 92 59 108 354 75 347 Wait 37 | . . . . 23 14 Move 893 | 73 56 98 349 50 267 Hop . | . . . . . . Pick Up 25 | 6 1 5 2 . 11 Fast Attach . | . . . . . . Attach 16 | 6 1 . 1 . 8 Detach . | . . . . . . Swap 1 | . . . . . 1 Drop 6 | . . . 2 . 4 Fire 57 | 7 1 5 . 2 42 Melee . | . . . . . . Ram . | . . . . . . Kick . | . . . . . . Crush . | . . . . . . Escape Stasis . | . . . . . . Rewire . | . . . . . . Trap . | . . . . . . Miscellaneous . | . . . . . . Route ------- -11/Scrapyard -10/Materials -10/Mines -10/Exiles -9/Mines -8/Materials History --------- Turn | Location | Event 2 | -11/Scrapyard | Met Revision 17 44 | -11/Scrapyard | Discovered new exit (range 8) 87 | -11/Scrapyard | Entered Materials 113 | -10/Materials | Discovered new exit (range 12) 137 | -10/Materials | Entered Mines 163 | -10/Mines | Met a Derelict bent on vengeance 213 | -10/Mines | Assembled infested the area 218 | -10/Mines | Assisted by a Guerilla fighting off Assembled 232 | -10/Mines | Deemed a non-threat by the Exiles lab entrance 232 | -10/Mines | Discovered new exit (range 5) 236 | -10/Mines | Entered Exiles 257 | -10/Exiles | Met 8R-AWN 270 | -10/Exiles | Met EX-HEX 292 | -10/Exiles | Met EX-BIN 301 | -10/Exiles | Aligned with FarCom system 302 | -10/Exiles | Given EX-Vault access code 308 | -10/Exiles | Build established: Mutant 430 | -10/Exiles | Opened EX-Vault 436 | -10/Exiles | Found Prototype Special Weapon 438 | -10/Exiles | Identified Field Lobotomy Kit 457 | -10/Exiles | Warned to stay clear of 0b10 Research branches 509 | -10/Exiles | Discovered new exit (range 15) 520 | -10/Exiles | Left Exiles lab with Field Lobotomy Kit 520 | -10/Exiles | Entered Mines 520 | -9/Mines | Assimilated G-34 Mercenary with FLK Orb 524 | -9/Mines | Assimilated B-36 Bruiser with FLK Orb 560 | -9/Mines | Discovered new exit (range 12) 592 | -9/Mines | Entered Materials 592 | -8/Materials | Accompanied by 2 allies 592 | -8/Materials | Evolved 4 slots: Power x1, Propulsion x1, Utility x1, Weapon x1 654 | -8/Materials | Assimilated G-47 Trooper with FLK Orb 657 | -8/Materials | Assimilated G-47 Trooper with FLK Orb 708 | -8/Materials | Lost 4 allies 731 | -8/Materials | Core integrity fell below 50% 824 | -8/Materials | Garrison activated, responded to threat 998 | -8/Materials | Core integrity fell below 20% 1006 | -8/Materials | Destroyed by X-62 Marksman with Pulse Rifle Last Messages --------------- A bubble of electromagnetic force engulfs the area. EM Pulse Gun destroyed. ALERT: Suspicious intruders detected, dispatching Specialist reinforcements to area. Dropped Aluminum Leg. Acquired Nuclear Core. System corrupted: Component data lost. Acquired Titanium Leg. Terminal disabled. NWZMQZWM3ARZDEQFQUA HGGTV Lgt. Nuclear Core destroyed. Com. Wheel destroyed. Slug penetrates Wall. Critical hit (Burn: +37). Penetrated by Slug. Dropped Titanium Leg. Dropped Imp. Sensor Array. Hvy. Assault Rifle destroyed. Acquired Wheel. Map ----- +----------------------------------------------------+ | | | | | | | | | ????????????????######????????????? | | ???????????????# #????????????? | | ???????????????# "" #????????????? | | ???????????????# """ #????????????? | | ???????????????# S" #????????????? | | ???????????????# #????????????? | | ???????????????# ="""############## | | ???????????????# """# # | | ???????????????#! """# # T | | ???????????????# """# # | | ???????????????# """# # | | ???????????????# # # | | ???????????????# # # | | ???????###########+######+######+## | | ???????# # ^ | | ???????+ ""H/ | | ???????# T"x# h ^ | | ???????# # ################### | | ???????# x; #????????????????# | | ???????# =% r# #????????????????# | | ???????#/! ! # #????????????????# | | ???????#/!@ # #????????????????# | | ???????#/==Y # #????????????????# | | ???????#### ### #????????????????# | | ??????????###?? ?????????????????# | | ??????????????? ?????????????????# | | ??????????????? ?????????????????## | | ??????????????? ??????????????????? | | ??????????????? ??????????????????? | | ???????????????#??????????????????? | | ??????????????????????????????????? | | ???????w??????????????????????????? | | ??????????????????????????????????? | | ??????????????????????????????????? | | ??????????????????????????????????? | | ???????????Y??????????????????????? | | ??????????????????????????????????? | | ??????????????????????????????????? | | ??????????????????????????????????? | | ??????????????????????????????????? | | ??????????????????????????????????? | | ??????????????????????????????????? | | ??????????????????????????????????? | | ??????????????????????????????????? | | ??????????????????????????????????? | | ??????????????????????????????????? | +----------------------------------------------------+ Best States ------------- Heat Dissipation 41 Energy Generation 23 Energy Capacity 500 Matter Stores 400 Matter Capacity 400 Sight Range 16 Terrain Scan Density 10 Evasion (%) 50 Item Schematics ----------------- None Robot Schematics ------------------ None Fabricated ------------ Nothing Alien Tech Used ----------------- None Achievements -------------- Power Corrupts Risk Taker Troublemaker Challenges ------------ None Game ------ Seed MobileMicrowarpMultitool Manual? 0 Play Time 00:20:40 Cumulative 1.5 hours Start 2024.08.03 @ 10:50:54 End 2024.08.03 @ 11:09:37 Sessions 1 Manual Loads 0 Difficulty Rogue Special Mode None Game No. 3 Rogue 3 Adventurer 0 Explorer 0 Win Type - Total 0 Types 0/0/0/0/0/0/0/0/0 Lore% 6 Gallery% 3 Achievement% 7 Wizard Run 0 Options --------- Layout 1 ASCII 0 Keyboard 0 Movement Mouse Keybinds 0 Fullscreen 1 Font 24/Smallcaps Map View 50x35 Zoom Use 0% Tactical HUD 0 Map Filters NONE Filters NONE Steam 1 RUN: fc8e4889-62a1-4edc-9cf8-74e5498a2487